{"text_format":"1","workbook":"xlsx","n_sheets":6,"sheets":["Adatgyűjtő mezőmező","Adatgyűjtő mezőhöz segédmező"," Adatgyűjtő sorszám generáló","Keráru bank","Keráru tábla","Tevékenységi lista"],"not_rendered":{"charts":0,"images":0,"macros":1,"external_links":1,"defined_names":1,"comments":0,"pivot_tables":0},"unopened":[],"bounds":{"document_bytes":16777216,"sheet_cells":100000,"rows_first":2000,"rows_last":500,"rows_between":2000,"halvings":0,"cell_chars":16384,"cell_head_chars":4096},"cells_cut":0,"cells_raw":0,"read":"whole","date_system":"1900"}

{"sheet":"Adatgyűjtő mezőmező","index":0,"n_rows":21,"n_cols":17,"rows_kept":21,"cut":false,"hidden":false,"merged":[[0,12,0,15],[0,16,0,17],[5,0,5,1],[12,0,12,7],[12,8,15,8],[15,0,15,7],[20,0,20,6],[0,0,0,7],[0,8,0,11]]}
[{"$f":"'Adatgyűjtő mezőhöz segédmező'!A1","v":"Pojekt: JNJ-1801-Szekrényágy"},null,null,null,null,null,null,null,"Kész rajzok",null,null,null,"Wryklis/Vágás",null,null,null,"Marás"]
["Rajzszám:","Rajz típus:","Rajz típus:","Megnevezés:","Egység:","Lv/mm:","Db:","Megjegyzés","Modell","Alkatrész","Pdf","Dxf","Program",null,null,null,"CNC/G-kod"]
[{"$f":"'Adatgyűjtő mezőhöz segédmező'!B3&\"-\"&'Adatgyűjtő mezőhöz segédmező'!B4&C3&' Adatgyűjtő sorszám generáló'!A2","v":"JNJ-1801-A-0001"},"Alkatrész",{"$f":"VLOOKUP(B3,Táblázat1[],2)","v":"-A-"}]
[{"$f":"'Adatgyűjtő mezőhöz segédmező'!B3&\"-\"&'Adatgyűjtő mezőhöz segédmező'!B4&C4&' Adatgyűjtő sorszám generáló'!A3","v":"JNJ-1801-O-2"},"Összeállítás",{"$f":"VLOOKUP(B4,Táblázat1[],2)","v":"-O-"}]
[null,"Keráru",{"$f":"VLOOKUP(B5,Táblázat1[],2)","v":"-A-"}]
["zöld cella képletet tartalmaz"]
[]
[]
[]
[]
["Cél:"]
["Beviteli mező - lenyló/előugró ablak ahol feltölthető az \"Adatgyűjtő mező\""]
["Beviteli mező tartalma"]
["Rajzszám:","Rajz típus","Rajz típus","Megnevezés","Egység","Lv/mm","Db","Megjegyzés"]
["Rajzszám generálódik: képlet szerint","választható lenyíló","Rajz tipus generálódik: képlet szerint","Szövegbeviteli mező","Szövegbeviteli mező-excel felajánlja, ha már van azonos fentebb","Szövegbeviteli mező","Szövegbeviteli mező","Szövegbeviteli mező"]
[]
[]
[]
["Feltételek:"]
["Ha \"C\" oszlopban \"Alkatrész\" vagy \"Összeállítás\" van kiválasztva,akkor a beviteli mező egyszerűen feltölthető legyen"]
["Ha \"C\" oszlopban \"Keráru van\" kiválasztva, akkor a \"Keráru bank\" többlépcsős legördülő mezője nyílik le és onnan választhatóan nyílik \"Csoport név\" , \"Gyártó\", \"Típus\", \"Fajta\"! Kiválasztott tétel beíródik az aktuális sorba. Áthozza a generált \"Rajzszám\" / a \"B\" oszlop ban /, és a  \"megnevezés\" adatait! Egyszerűbben leírva a szűrt sor meghatározott tartalmát írja be."]

{"sheet":"Adatgyűjtő mezőhöz segédmező","index":1,"n_rows":9,"n_cols":5,"rows_kept":9,"cut":false,"hidden":false,"merged":[[0,0,0,1],[8,0,8,1]]}
[{"$f":"A2&\" \"&B3&\"-\"&B4&\"-\"&B2","v":"Pojekt: JNJ-1801-Szekrényágy"},null,null,"Rajz tipusa","Oszlop1"]
["Pojekt:","Szekrényágy",null,"Alkatrész","-A-"]
["Cégazonosító:","JNJ",null,"Összeállítás","-O-"]
["Projektszám:",1801,null,"Keráru","-K-"]
[]
["Projekt generálódik"]
[]
[]
["zöld cella képletet tartalmaz"]

{"sheet":" Adatgyűjtő sorszám generáló","index":2,"n_rows":7,"n_cols":1,"rows_kept":7,"cut":false,"hidden":false,"merged":[[6,0,6,1]]}
["Sorszám"]
[{"$f":"TEXT(ROW(A1),\"0000\")","v":"0001"}]
[{"$f":"TEXT(ROW(A1),\"0000\")+1","v":2}]
[{"$f":"TEXT(ROW(A2),\"0000\")+1","v":3}]
["Sorszám 0001-9999 ig generálódjon, a bevizeli mező rajzszámában szerepel, autómatukusan növlje a számot \"+1\" értékkel amint új beviteli cella kerül kitöltésre"]
["Sajnos nem írja ki a szám elötti nullákat"]
["zöld cella képletet tartalmaz"]

{"sheet":"Keráru bank","index":3,"n_rows":18,"n_cols":14,"rows_kept":18,"cut":false,"hidden":false,"merged":[[14,0,14,4],[17,0,17,8],[11,12,11,13],[11,6,12,6],[11,7,13,7],[11,8,12,8],[11,9,12,9],[11,10,12,10],[11,11,12,11]]}
[]
["Generált szám","Rajzszám","NIN-","Első tag","Csop.szam","Keráru","Csoport neve",null,"Gyártó","Típus","Fajta","Megjegyzés","Forgalmazó","web"]
[{"$f":"C3&D3&E3&F3&[1]tábla!Q2","v":"NIN-0103-K-0001"},{"$f":"C3&D3&E3&F3&H3","v":"NIN-0103-K-0001"},{"$f":"C2","v":"NIN-"},"01",{"$f":"VLOOKUP(G3,Táblázat13[],2,0)","v":"03"},"-K-","Fogaskerék","0001","HIWIN","HGW","20cc"]
[{"$f":"C4&D4&E4&F4&[1]tábla!Q3","v":"NIN-0103-K-0002"},{"$f":"C4&D4&E4&F4&H4","v":"NIN-0103-K-0002"},{"$f":"C3","v":"NIN-"},"01",{"$f":"VLOOKUP(G4,Táblázat13[],2,0)","v":"03"},"-K-","Fogaskerék","0002","CPC","HGW","20cc"]
[{"$f":"C5&D5&E5&F5&[1]tábla!Q4","v":"NIN-0101-K-0003"},"NIN-0101-K-0003","NIN-","01",{"$f":"VLOOKUP(G5,Táblázat13[],2,0)","v":"01"},"-K-","Lineáris technika","0003"]
[{"$f":"C6&D6&E6&F6&[1]tábla!Q5","v":"NIN-0101-K-0004"},"NIN-0101-K-0004","NIN-","01",{"$f":"VLOOKUP(G6,Táblázat13[],2,0)","v":"01"},"-K-","Lineáris technika","0004"]
[{"$f":"C7&D7&E7&F7&[1]tábla!Q6","v":"NIN-0101-K-0005"},"NIN-0101-K-0005","NIN-","01",{"$f":"VLOOKUP(G7,Táblázat13[],2,0)","v":"01"},"-K-","Lineáris technika","0005"]
[{"$f":"C8&D8&E8&F8&[1]tábla!Q7","v":"NIN-0103-K-0006"},"NIN-0103-K-0006","NIN-","01",{"$f":"VLOOKUP(G8,Táblázat13[],2,0)","v":"03"},"-K-","Fogaskerék","0006"]
[{"$f":"C9&D9&E9&F9&[1]tábla!Q8","v":"NIN-0101-K-0007"},"NIN-0101-K-0007","NIN-","01",{"$f":"VLOOKUP(G9,Táblázat13[],2,0)","v":"01"},"-K-","Lineáris technika","0007"]
[{"$f":"C10&D10&E10&F10&[1]tábla!Q9","v":"NIN-0101-K-0008"},"NIN-0101-K-0008","NIN-","01",{"$f":"VLOOKUP(G10,Táblázat13[],2,0)","v":"01"},"-K-","Lineáris technika","0008"]
[{"$f":"C11&D11&E11&F11&[1]tábla!Q10","v":"NIN-0101-K-0009"},"NIN-0101-K-0009","NIN-","01",{"$f":"VLOOKUP(G11,Táblázat13[],2,0)","v":"01"},"-K-","Lineáris technika","0009"]
[null,"Generált kód",null,"fix","Generálódik",null,"beviteli mezőből töltődik \"kerárú tábla\"","beviteli mezőből töltődik \"kerárú tábla\"","beviteli mezőből töltődik \"kerárú tábla\"","beviteli mezőből töltődik \"kerárú tábla\"","beviteli mezőből töltődik \"kerárú tábla\"","beviteli mezőből töltődik \"kerárú tábla\"","utólag manuálisan töltöm ki"]
["Generálódik"]
[]
["zöld cella képletet tartalmaz"]
[]
[]
["Sajnos valamiért az \"F\" oszlop kiválasztásával nem generálódik a \"D\" oszlop, emiatt az \"A\" oszlopban is hibásan jelenik meg a generált rajzszám!"]

{"sheet":"Keráru tábla","index":4,"n_rows":20,"n_cols":14,"rows_kept":20,"cut":false,"hidden":false,"merged":[[19,0,19,2],[5,12,6,14],[15,7,18,7]]}
["Csop.nev","Csop.szam",null,null,"Gyártó",null,null,"Típus",null,null,"Fajta",null,null,"Cégnév"]
["Lineáris technika","01",null,null,"HIWIN",null,null,"HGW",null,null,"25CC",null,null,"NIN-"]
["Motorok","02",null,null,"CPC",null,null,"PGHGW",null,null,"20CC",null,null,"TG-"]
["Fogaskerék","03",null,null,"SKF",null,null,"HG-45",null,null,"Break",null,null,"TM-"]
["Fogasléc","04",null,null,"Mitsubishi",null,null,null,null,null,"NoBreak"]
["Hajtóművek","05",null,null,null,null,null,null,null,null,null,null,"ezt a táblát külön, manuálisan töltöm ki"]
[null,"generálódik új sor beszúrásánál"]
[]
["Feltételek:"]
["Új sor beszúrásánál \"A1\" oszlopba, a B1 oszlopban a csop.szám"]
["egyel növekedjen az előzőhö képest maximum 99 ig számozva"]
[]
[]
["\"tábla\" munkalapnak egy beviteli mező,ami betűkombinációval hívható elő -  pl.: Ctrl+k - beviteli mező cellái:"]
[]
["Tételszám","Csop.név","csop.szám","Gyártó","Tipus","Fajta","Megjegyzés"]
["0001-től indul","beviteli cella","ez autómatikusan töltődik/generálódik","beviteli cella","beviteli cella","beviteli cella","beviteli cella"]
["generálódik új sor beszúrásánál"]
[]
["Ebből a beviteli mezőből töltődik a \"Keráru bank\""]

{"sheet":"Tevékenységi lista","index":5,"n_rows":29,"n_cols":11,"rows_kept":29,"cut":false,"hidden":false,"merged":[[28,0,28,1]]}
[null,null,null,"Kezdés",null,"Befejezés"]
["Rajzszám","Teendők","Állapot","dátum","Ki foglalkozik vele","dátum",null,null,null,"Állapot","Ki foglakozik vele"]
[{"$f":"'Adatgyűjtő mezőmező'!A3","v":"JNJ-1801-A-0001"},null,"Kész","2018-11-10T13:47:30","Ede Ödön",null,null,null,null,"Nincs kiadva"]
[null,null,"Nincs kiadva",null,null,null,null,null,null,"Rendelés alatt","Alma Kálmán"]
[null,null,"Nincs kiadva",null,null,null,null,null,null,"Kiadva munkába","Ede Ödön"]
[null,null,"Kész","2018-11-10T13:42:31","Alma Kálmán","2018-11-10T13:47:43",null,null,null,"Szállítás alatt","Kiss Nagy"]
[null,null,"Nincs kiadva",null,null,null,null,null,null,"Kész"]
[null,null,"Nincs kiadva"]
[null,null,"Kiadva munkába",null,"Kiss Nagy"]
[null,null,"Nincs kiadva"]
[null,null,"Szállítás alatt",null,"Kiss Nagy"]
[null,null,"Nincs kiadva"]
[null,null,"Kiadva munkába","2018-11-10T13:43:27"]
[null,null,"Kiadva munkába","2018-11-10T13:43:30","Alma Kálmán"]
[null,null,"Kiadva munkába","2018-11-10T13:43:33"]
[null,null,"Kiadva munkába","2018-11-10T13:43:35"]
[null,null,"Szállítás alatt","2018-11-10T13:43:44"]
[null,null,"Nincs kiadva"]
[null,null,"Rendelés alatt","2018-11-10T13:43:59","Alma Kálmán"]
[null,null,"Nincs kiadva"]
[null,null,"Nincs kiadva",null,null,"2018-11-11T20:43:21"]
[null,null,"Nincs kiadva"]
[null,null,"Nincs kiadva"]
[null,null,"Nincs kiadva"]
[null,null,"Nincs kiadva"]
[null,null,"Nincs kiadva"]
[null,null,"Rendelés alatt","2018-11-10T13:38:41"]
[]
["Ehhez a laphoz kaztam a makro programot!"]